fUSD/lending_fUSD_20260408
["ID","MTS","AMOUNT","RATE_DAILY","PERIOD"]
[420009661,1775610641872,-1795.066,0.00014189,2]
[420009662,1775610641882,-1795.066,0.00014189,2]
[420009663,1775610641892,-1795.066,0.00014189,2]
[420009664,1775610641902,-1795.066,0.00014189,2]
[420009665,1775610641911,-151.0,0.00014189,2]
[420009666,1775610641921,-151.0,0.00014207,2]
[420009667,1775610641931,-151.0,0.00014207,2]
[420009668,1775610641941,-151.0,0.00014207,2]
[420009669,1775610641951,-151.0,0.00014207,2]
[420009670,1775610641961,-150.0,0.00014207,2]
[420009671,1775610641971,-150.0,0.00014211,2]
[420009672,1775610641981,-150.0,0.00014216,2]
[420009673,1775610641991,-150.0,0.00014221,2]
[420009674,1775610642001,-20571.8416767,0.00014223,2]
[420009675,1775610642010,-150.0,0.00014233,2]
[420009676,1775610642019,-150.0,0.00014241,2]
[420009677,1775610642029,-150.0,0.00014247,2]
[420009678,1775610642039,-166.66,0.00014247,2]
[420009679,1775610642049,-150.0,0.00014247,2]
[420009680,1775610642058,-150.0,0.00014247,2]
[420009681,1775610642067,-150.0,0.00014247,2]
[420009682,1775610642077,-1000.0,0.00014254,2]
[420009683,1775610642087,-500.0,0.00014265,2]
[420009684,1775610642096,-500.0,0.00014265,2]
[420009685,1775610642106,-264.2381504,0.00014265,2]
[420009686,1775610642116,-504.67557092,0.00014265,2]
[420009687,1775610642125,-150.0,0.00014267,2]
[420009688,1775610642134,-150.0,0.00014271,2]
[420009689,1775610642144,-150.0,0.00014286,2]
[420009690,1775610642154,-150.0,0.00014286,2]
[420009691,1775610642164,-150.0,0.00014286,2]
[420009692,1775610642173,-150.0,0.00014294,2]
[420009693,1775610642183,-150.0,0.00014297,2]
[420009694,1775610642193,-150.0,0.00014303,2]
[420009695,1775610642204,-150.0,0.00014313,2]
[420009696,1775610642214,-500.0,0.00014329,2]
[420009697,1775610642224,-150.0,0.00014338,2]
[420009698,1775610642234,-150.0,0.00014353,2]
[420009699,1775610642244,-150.0,0.00014353,2]
[420009700,1775610642254,-150.0,0.0001436,2]
[420009701,1775610642263,-150.0,0.00014364,2]
[420009702,1775610642274,-2351.0,0.00014366,2]
[420009703,1775610642284,-150.0,0.00014377,2]
[420009704,1775610642294,-166.66,0.00014384,2]
[420009705,1775610642303,-23357.19080226,0.00014386,2]
[420009706,1775610642312,-150.0,0.0001439,2]
[420009707,1775610642322,-150.0,0.0001439,2]
[420009708,1775610642331,-1573.0,0.000144,2]
[420009709,1775610642340,-150.0,0.00014406,2]
[420009710,1775610642350,-150.0,0.00014409,2]
[420009711,1775610642359,-506.0,0.00014412,3]
[420009712,1775610642369,-150.0,0.00014414,2]
[420009713,1775610642378,-1573.0,0.0001442,2]
[420009714,1775610642388,-166.66,0.00014426,2]
[420009715,1775610642398,-150.0,0.00014443,2]
[420009716,1775610642408,-150.0,0.00014443,2]
[420009717,1775610642417,-150.0,0.00014443,2]
[420009718,1775610642427,-151.0,0.00014443,2]
[420009719,1775610642437,-151.0,0.00014443,2]
[420009720,1775610642447,-191.016655,0.00014443,2]
[420009721,1775610642456,-150.0,0.00014452,2]
[420009722,1775610642466,-20571.8416767,0.00014452,2]
[420009723,1775610642476,-150.0,0.00014459,2]
[420009724,1775610642486,-150.0,0.00014465,2]
[420009725,1775610642495,-769.0,0.00014475,5]
[420009726,1775610642505,-283.39,0.00014475,2]
[420009727,1775610642515,-150.0,0.00014478,2]
[420009728,1775610642525,-150.0,0.00014495,2]
[420009729,1775610642535,-150.0,0.00014498,2]
[420009730,1775610642544,-29999.99,0.00014504,2]
[420009731,1775610642554,-9999.99,0.00014504,2]
[420009732,1775610642563,-150.0,0.00014521,2]
[420009733,1775610642573,-150.0,0.00014521,2]
[420009734,1775610642583,-150.0,0.00014542,2]
[420009735,1775610642593,-150.0,0.00014544,2]
[420009736,1775610642603,-150.0,0.00014547,2]
[420009737,1775610642613,-188.37,0.00014554,2]
[420009738,1775610642623,-150.0,0.00014557,2]
[420009739,1775610642633,-150.0,0.00014565,2]
[420009740,1775610642643,-150.0,0.00014577,2]
[420009741,1775610642652,-150.0,0.00014577,2]
[420009742,1775610642662,-4169.4241066,0.00014583,2]
[420009743,1775610642671,-400.0,0.00014585,2]
[420009744,1775610642681,-211.986446,0.00014585,2]
[420009745,1775610642691,-150.0,0.0001459,2]
[420009746,1775610642700,-150.0,0.000146,2]
[420009747,1775610642710,-150.0,0.000146,2]
[420009748,1775610642720,-150.0,0.000146,2]
[420009749,1775610642729,-167.8986,0.000146,2]
[420009751,1775610642740,-1000.0,0.00014611,2]
[420009752,1775610642749,-150.0,0.00014625,2]
[420009753,1775610642759,-500.0,0.00014627,2]
[420009755,1775610642768,-584.47,0.00014627,2]
[420009756,1775610642778,-500.0,0.00014627,2]
[420009757,1775610642789,-500.0,0.00014627,2]
[420009759,1775610642799,-500.0,0.00014627,2]
[420009761,1775610642809,-500.0,0.00014627,2]
[420009763,1775610642820,-500.0,0.00014627,2]
[420009765,1775610642830,-500.0,0.00014627,2]
[420009766,1775610642840,-151.0,0.00014627,2]
[420009768,1775610642850,-151.0,0.00014627,2]
[420009770,1775610642860,-151.0,0.00014627,2]
[420009771,1775610642871,-151.0,0.00014627,2]
[420009772,1775610642881,-151.0,0.00014627,2]
[420009773,1775610642891,-151.0,0.00014627,2]
[420009774,1775610642902,-232.075827,0.00014627,2]
[420009775,1775610642912,-232.075827,0.00014627,2]
[420009776,1775610642922,-151.0,0.00014627,2]
[420009777,1775610642933,-232.075827,0.00014627,2]
[420009778,1775610642943,-151.0,0.00014627,2]
[420009779,1775610642954,-232.075827,0.00014627,2]
[420009780,1775610642972,-151.0,0.00014627,2]
[420009781,1775610642982,-151.0,0.00014627,2]
[420009782,1775610642992,-151.0,0.00014627,2]
[420009783,1775610643003,-150.0,0.00014633,2]
[420009784,1775610643013,-2556.500204,0.00014635,2]
[420009785,1775610643023,-705.265744,0.00014635,7]
[420009786,1775610643034,-1258.485263,0.00014635,2]
[420009787,1775610643045,-150.0,0.00014637,2]
[420009788,1775610643055,-150.0,0.00014652,2]
[420009789,1775610643066,-150.0,0.00014652,2]
[420009790,1775610643076,-150.0,0.00014678,2]
[420009791,1775610643088,-20571.8416767,0.00014682,2]
[420009792,1775610643098,-150.0,0.00014683,2]
[420009793,1775610643109,-1000.0,0.00014685,2]
[420009794,1775610643119,-1000.0,0.00014685,2]
[420009795,1775610643130,-150.0,0.00014689,2]
[420009796,1775610643140,-23357.19080226,0.0001469,2]
[420009797,1775610643150,-150.0,0.000147,2]
[420009798,1775610643160,-150.0,0.00014704,2]
[420009799,1775610643171,-150.0,0.00014707,2]
[420009800,1775610643181,-150.0,0.00014729,2]
[420009801,1775610643191,-2811.0,0.00014738,2]
[420009802,1775610643202,-150.0,0.00014739,2]
[420009803,1775610643213,-150.0,0.00014745,2]
[420009804,1775610643223,-150.0,0.00014757,2]
[420009805,1775610643234,-150.0,0.00014757,2]
[420009806,1775610643245,-150.0,0.00014757,2]
[420009807,1775610643255,-150.0,0.00014775,2]
[420009808,1775610643617,-150.0,0.0001479,2]
[420009809,1775610643629,-154.981614,0.00014795,2]
[420009810,1775610643639,-154.981614,0.00014795,2]
[420009811,1775610643651,-154.981614,0.00014795,2]
[420009812,1775610643661,-154.981614,0.00014795,2]
[420009813,1775610643671,-151.0,0.00014795,2]
[420009814,1775610643681,-195.567696,0.00014795,2]
[420009815,1775610643691,-184.0,0.00014795,2]
[420009816,1775610643701,-150.0,0.00014802,2]
[420009817,1775610643712,-150.0,0.00014802,2]
[420009818,1775610643723,-150.0,0.00014809,2]
[420009819,1775610643733,-1000.0,0.00014813,2]
[420009820,1775610643743,-1000.0,0.00014813,2]
[420009821,1775610643753,-1600.0,0.00014817,2]
[420009822,1775610643763,-457.963478,0.00014818,2]
[420009823,1775610643774,-457.963478,0.00014818,2]
[420009824,1775610643784,-151.0,0.00014818,2]
[420009825,1775610643795,-457.963478,0.00014818,2]
[420009826,1775610643805,-457.963478,0.00014818,2]
[420009827,1775610643816,-151.0,0.00014818,2]
[420009828,1775610643826,-1795.066,0.00014818,2]
[420009829,1775610643836,-1795.066,0.00014818,2]
[420009830,1775610643847,-1795.066,0.00014818,2]
[420009831,1775610643857,-1795.066,0.00014818,2]
[420009832,1775610643867,-151.0,0.00014818,2]
[420009833,1775610643879,-150.0,0.00014821,2]
[420009834,1775610643889,-150.0,0.00014826,2]
[420009835,1775610643899,-150.0,0.00014835,2]
[420009836,1775610643910,-150.0,0.00014842,2]
[420009837,1775610643920,-150.0,0.00014858,2]
[420009838,1775610643931,-150.0,0.00014861,2]
[420009839,1775610643941,-240.95,0.00014865,2]
[420009840,1775610643952,-151.0,0.00014867,2]
[420009841,1775610643973,-151.0,0.00014867,2]
[420009842,1775610643983,-175.593807,0.00014867,2]
[420009844,1775610643995,-150.0,0.00014868,2]
[420009847,1775610644005,-150.0,0.00014872,2]
[420009849,1775610644015,-150.0,0.00014894,2]
[420009851,1775610644025,-150.0,0.00014894,2]
[420009853,1775610644036,-963.0,0.00014894,2]
[420009856,1775610644046,-289.89258684,0.00014894,2]
[420009859,1775610644056,-963.0,0.00014894,2]
[420009861,1775610644067,-963.0,0.00014894,2]
[420009863,1775610644077,-963.0,0.00014894,2]
[420009865,1775610644087,-963.0,0.00014894,2]
[420009867,1775610644097,-963.0,0.00014894,2]
[420009869,1775610644107,-963.0,0.00014894,2]
[420009871,1775610644118,-963.0,0.00014894,2]
[420009873,1775610644129,-963.0,0.00014894,2]
[420009875,1775610644139,-963.0,0.00014894,2]
[420009877,1775610644149,-963.0,0.00014894,2]
[420009879,1775610644159,-963.0,0.00014894,2]
[420009881,1775610644170,-963.0,0.00014894,2]
[420009883,1775610644181,-963.0,0.00014894,2]
[420009885,1775610644191,-963.0,0.00014894,2]
[420009887,1775610644200,-963.0,0.00014894,2]
[420009889,1775610644210,-963.0,0.00014894,2]
[420009891,1775610644221,-963.0,0.00014894,2]
[420009893,1775610644232,-963.0,0.00014894,2]
[420009895,1775610644242,-963.0,0.00014894,2]
[420009897,1775610644255,-963.0,0.00014894,2]
[420009899,1775610644266,-963.0,0.00014894,2]
[420009901,1775610644277,-963.0,0.00014894,2]
[420009903,1775610644287,-965.85122809,0.00014894,2]
[420009905,1775610644297,-500.0,0.00014894,2]
[420009907,1775610644308,-500.0,0.00014894,2]
[420009909,1775610644319,-500.0,0.00014894,2]
[420009911,1775610644333,-500.0,0.00014894,2]
[420009913,1775610644343,-500.0,0.00014894,2]
[420009915,1775610644354,-500.0,0.00014894,2]
[420009917,1775610644364,-500.0,0.00014894,2]
[420009919,1775610644374,-500.0,0.00014894,2]
[420009921,1775610644385,-500.0,0.00014894,2]
[420009923,1775610644395,-500.0,0.00014894,2]
[420009925,1775610644405,-500.0,0.00014894,2]
[420009927,1775610644416,-379.35266898,0.00014894,2]
[420009929,1775610644427,-188.37,0.00014894,2]
[420009932,1775610644437,-184.0,0.00014894,2]
[420009934,1775610644449,-185.41835149,0.00014894,2]
[420009936,1775610644458,-158.0,0.000149,2]
[420009938,1775610644468,-900.0,0.000149,5]
[420009940,1775610644478,-900.0,0.000149,5]
[420009942,1775610644489,-166.66,0.00014902,2]
[420009943,1775610644499,-20571.8416767,0.00014911,2]
[420009945,1775610644510,-150.0,0.00014914,2]
[420009947,1775610644520,-150.0,0.00014914,2]
[420009949,1775610644529,-150.0,0.00014914,2]
[420009951,1775610644541,-150.0,0.00014914,2]
[420009954,1775610644552,-150.0,0.00014914,2]
[420009956,1775610644562,-150.0,0.00014914,2]
[420009958,1775610644572,-309.31072756,0.00014941,2]
[420009960,1775610644581,-150.0,0.00014955,2]
[420009962,1775610644591,-150.0,0.0001496,2]
[420009964,1775610644601,-150.0,0.00014966,2]
[420009966,1775610644612,-150.0,0.0001497,2]
[420009968,1775610644622,-150.0,0.00014985,2]
[420009969,1775610644631,-150.0,0.00014992,2]
[420009971,1775610644641,-151.0,0.00014993,2]
[420009973,1775610644651,-151.0,0.00014993,2]
[420009975,1775610644661,-151.0,0.00014993,2]
[420009978,1775610644671,-151.0,0.00014993,2]
[420009980,1775610644681,-151.0,0.00014993,2]
[420009982,1775610644691,-232.075827,0.00014993,2]
[420009984,1775610644702,-232.075827,0.00014993,2]
[420009986,1775610644713,-151.0,0.00014993,2]
[420009988,1775610644727,-232.075827,0.00014993,2]
[420009990,1775610644738,-151.0,0.00014993,2]
[420009992,1775610644748,-232.075827,0.00014993,2]
[420009994,1775610644759,-151.0,0.00014993,2]
[420009996,1775610644769,-151.0,0.00014993,2]
[420009999,1775610644786,-151.0,0.00014993,2]
[420010001,1775610644802,-23357.19080226,0.00014993,2]
[420010003,1775610644813,-4706.1524,0.00014996,2]
[420010006,1775610644824,-300.0,0.00015,2]
[420010008,1775610644836,-500.0,0.00015,2]
[420010010,1775610644847,-500.0,0.00015,2]
[420010012,1775610644857,-500.0,0.00015,2]
[420010014,1775610644868,-500.0,0.00015,2]
[420010016,1775610644878,-500.0,0.00015,2]
[420010018,1775610644889,-500.0,0.00015,2]
[420010020,1775610644899,-500.0,0.00015,2]
[420010022,1775610644910,-500.0,0.00015,2]
[420010024,1775610644921,-500.0,0.00015,2]
[420010026,1775610644931,-500.0,0.00015,2]
[420010028,1775610644942,-500.0,0.00015,2]
[420010030,1775610644953,-500.0,0.00015,2]
[420010032,1775610644963,-230.2,0.00015,2]
[420010034,1775610644974,-500.0,0.00015,2]
[420010036,1775610644984,-500.0,0.00015,2]
[420010038,1775610644994,-486.63,0.00015,2]
[420010040,1775610645004,-828.05531416,0.00015,2]
[420010042,1775610645015,-150.0,0.00015001,2]
[420010044,1775610645026,-150.0,0.00015006,2]
[420010046,1775610645038,-150.0,0.00015018,2]
[420010048,1775610645049,-150.0,0.00015026,2]
[420010051,1775610645060,-150.0,0.00015026,2]
[420010053,1775610645070,-150.0,0.00015038,2]
[420010055,1775610645080,-1573.0,0.0001504,2]
[420010057,1775610645090,-150.0,0.00015052,2]
[420010059,1775610645101,-484.40966182,0.00015065,2]
[420010061,1775610645111,-390.07,0.00015068,2]
[420010063,1775610645122,-151.0,0.00015068,2]
[420010065,1775610645132,-151.0,0.00015068,2]
[420010067,1775610645142,-151.0,0.00015068,2]
[420010069,1775610645153,-151.0,0.00015068,2]
[420010071,1775610645164,-151.0,0.00015068,2]
[420010073,1775610645175,-151.0,0.00015068,2]
[420010075,1775610645185,-161.207016,0.00015068,2]
[420010077,1775610645195,-800.0,0.00015068,2]
[420010079,1775610645206,-150.0,0.00015071,2]
[420010081,1775610645216,-150.0,0.00015071,2]
[420010083,1775610645226,-150.0,0.00015071,2]
[420010085,1775610645237,-150.0,0.00015082,2]
[420010087,1775610645247,-150.0,0.00015088,2]
[420010089,1775610645257,-4169.42410658,0.00015092,2]
[420010091,1775610645268,-150.0,0.00015098,2]
[420010094,1775610645284,-151.0,0.00015111,2]
[420010096,1775610645296,-151.0,0.00015111,2]
[420010098,1775610645307,-150.0,0.0001512,2]
[420010100,1775610645318,-150.0,0.00015123,2]
[420010102,1775610645329,-997.0,0.00015126,2]
[420010104,1775610645340,-150.0,0.00015128,2]
[420010106,1775610645351,-150.0,0.00015138,2]
[420010109,1775610645362,-20571.8416767,0.00015141,2]
[420010111,1775610645372,-150.0,0.00015145,2]
[420010113,1775610645383,-150.0,0.00015149,2]
[420010115,1775610645395,-283.39,0.00015164,2]
[420010117,1775610645405,-433.0,0.00015171,2]
[420010119,1775610645416,-150.0,0.00015175,2]
[420010121,1775610645428,-150.0,0.00015175,2]
[420010123,1775610645438,-162.0,0.00015179,2]
[420010125,1775610645449,-150.0,0.00015191,2]
[420010127,1775610645459,-150.0,0.00015194,2]
[420010130,1775610645471,-578.20924308,0.00015196,2]
[420010132,1775610645481,-623.58710448,0.00015196,2]
[420010134,1775610645491,-1235.18214925,0.00015196,2]
[420010136,1775610645502,-500.0,0.00015196,2]
[420010138,1775610645512,-500.0,0.00015196,2]
[420010140,1775610645522,-181.08010149,0.00015196,2]
[420010142,1775610645533,-200.0,0.00015196,2]
[420010144,1775610645544,-8260.13072239,0.00015196,2]
[420010146,1775610645554,-500.0,0.00015196,2]
[420010148,1775610645565,-500.0,0.00015196,2]
[420010150,1775610645575,-500.0,0.00015196,2]
[420010152,1775610645585,-500.0,0.00015196,2]
[420010154,1775610645595,-500.0,0.00015196,2]
[420010156,1775610645606,-500.0,0.00015196,2]
[420010158,1775610645615,-500.0,0.00015196,2]
[420010160,1775610645626,-500.0,0.00015196,2]
[420010162,1775610645636,-500.0,0.00015196,2]
[420010164,1775610645646,-500.0,0.00015196,2]
[420010167,1775610645657,-500.0,0.00015196,2]
[420010170,1775610645667,-500.0,0.00015196,2]
[420010172,1775610645678,-201.93286099,0.00015196,2]
[420010174,1775610645689,-500.0,0.00015196,2]
[420010176,1775610645699,-151.0,0.00015196,2]
[420010178,1775610645710,-233.76893115,0.00015196,2]
[420010180,1775610645720,-3000.0,0.00015196,2]
[420010182,1775610645732,-151.0,0.00015196,2]
[420010184,1775610645742,-500.0,0.00015196,2]
[420010186,1775610645753,-3000.0,0.00015196,2]
[420010188,1775610645763,-151.0,0.00015196,2]
[420010191,1775610645774,-3000.0,0.00015196,2]
[420010193,1775610645783,-151.0,0.00015196,2]
[420010195,1775610645800,-3000.0,0.00015196,2]
[420010197,1775610645811,-3000.0,0.00015196,2]
[420010199,1775610645822,-154.76515316,0.00015196,2]
[420010202,1775610645832,-3000.0,0.00015196,2]
[420010204,1775610645843,-3000.0,0.00015196,2]
[420010206,1775610645853,-3000.0,0.00015196,2]
[420010208,1775610645864,-3000.0,0.00015196,2]
[420010210,1775610645875,-3000.0,0.00015196,2]
[420010212,1775610645886,-743.50770149,0.00015196,2]
[420010215,1775610645897,-3000.0,0.00015196,2]
[420010216,1775610645906,-329.2835348,0.00015196,2]
[420010219,1775610645917,-3000.0,0.00015196,2]
[420010221,1775610645927,-3000.0,0.00015196,2]
[420010223,1775610645938,-2500.0,0.00015196,2]
[420010225,1775610645948,-174.61919141,0.00015196,2]
[420010227,1775610645959,-151.0,0.00015196,2]
[420010229,1775610645970,-151.0,0.00015196,2]
[420010231,1775610645980,-1500.0,0.00015196,2]
[420010233,1775610645990,-156.587,0.00015196,2]
[420010235,1775610646000,-1500.0,0.00015196,2]
[420010237,1775610646011,-195.40745371,0.00015196,2]
[420010239,1775610646022,-1500.0,0.00015196,2]
[420010241,1775610646032,-1500.0,0.00015196,2]
[420010243,1775610646043,-1500.0,0.00015196,2]
[420010245,1775610646054,-599.60298507,0.00015196,2]
[420010248,1775610646065,-170.0,0.00015196,2]
[420010250,1775610646076,-279.9045709,0.00015196,2]
[420010252,1775610646086,-170.0,0.00015196,2]
[420010254,1775610646096,-170.0,0.00015196,2]
[420010256,1775610646107,-170.0,0.00015196,2]
[420010258,1775610646117,-170.0,0.00015196,2]
[420010260,1775610646127,-170.0,0.00015196,2]
[420010262,1775610646137,-170.0,0.00015196,2]
[420010264,1775610646147,-170.0,0.00015196,2]
[420010266,1775610646157,-170.0,0.00015196,2]
[420010268,1775610646167,-170.0,0.00015196,2]
[420010270,1775610646179,-170.0,0.00015196,2]
[420010273,1775610646189,-170.0,0.00015196,2]
[420010275,1775610646199,-170.0,0.00015196,2]
[420010277,1775610646209,-170.0,0.00015196,2]
[420010279,1775610646220,-170.0,0.00015196,2]
[420010281,1775610646229,-457.963478,0.00015196,2]
[420010283,1775610646239,-457.963478,0.00015196,2]
[420010285,1775610646249,-151.0,0.00015196,2]
[420010287,1775610646259,-457.963478,0.00015196,2]
[420010289,1775610646269,-457.963478,0.00015196,2]
[420010291,1775610646281,-239.797024,0.00015196,2]
[420010293,1775610646292,-1795.066,0.00015196,2]
[420010295,1775610646303,-1795.066,0.00015196,2]
[420010298,1775610646314,-1795.066,0.00015196,2]
[420010300,1775610646324,-1795.066,0.00015196,2]
[420010302,1775610646334,-154.981614,0.00015196,2]
[420010304,1775610646345,-154.981614,0.00015196,2]
[420010306,1775610646355,-154.981614,0.00015196,2]
[420010308,1775610646365,-154.981614,0.00015196,2]
[420010310,1775610646375,-151.0,0.00015196,2]
[420010312,1775610646387,-150.0,0.00015203,2]
[420010314,1775610646398,-160.0,0.00015224,2]
[420010316,1775610646408,-150.0,0.00015228,2]
[420010318,1775610646419,-150.0,0.00015228,2]
[420010320,1775610646430,-150.0,0.00015228,2]
[420010322,1775610646439,-500.0,0.00015233,2]
[420010325,1775610646450,-500.0,0.00015233,2]
[420010327,1775610646460,-240.95,0.00015236,2]
[420010329,1775610646470,-150.0,0.00015237,2]
[420010331,1775610646481,-150.0,0.0001525,2]
[420010333,1775610646491,-150.0,0.0001525,2]
[420010335,1775610646502,-500.0,0.00015251,2]
[420010337,1775610646512,-8565.75555911,0.00015251,2]
[420010339,1775610646525,-151.0,0.00015251,2]
[420010341,1775610646535,-150.0,0.00015263,2]
[420010343,1775610646545,-150.0,0.0001527,2]
[420010345,1775610646556,-156.97,0.00015276,2]
[420010347,1775610646567,-150.0,0.0001528,2]
[420010349,1775610646577,-150.0,0.00015283,2]
[420010351,1775610646587,-150.0,0.00015286,2]
[420010352,1775610646597,-985.75,0.00015286,2]
[420010353,1775610646607,-151.0,0.00015288,2]
[420010355,1775610646618,-151.0,0.00015288,2]
[420010357,1775610646628,-151.0,0.00015296,2]
[420010358,1775610646639,-151.0,0.00015296,2]
[420010359,1775610646649,-151.0,0.00015296,2]
[420010360,1775610646659,-151.0,0.00015296,2]
[420010361,1775610646670,-151.0,0.00015296,2]
[420010362,1775610646681,-232.075827,0.00015296,2]
[420010363,1775610646691,-232.075827,0.00015296,2]
[420010365,1775610646701,-151.0,0.00015296,2]
[420010367,1775610646711,-232.075827,0.00015296,2]
[420010369,1775610646722,-151.0,0.00015296,2]
[420010371,1775610646733,-232.075827,0.00015296,2]
[420010373,1775610646743,-151.0,0.00015296,2]
[420010375,1775610646754,-151.0,0.00015296,2]
[420010377,1775610646764,-151.0,0.00015296,2]
[420010380,1775610646775,-226.215866,0.00015296,2]
[420010382,1775610646785,-151.0,0.00015296,2]
[420010384,1775610646795,-950.0,0.00015296,2]
[420010386,1775610646806,-950.0,0.00015296,2]
[420010388,1775610646816,-950.0,0.00015296,2]
[420010390,1775610646826,-950.0,0.00015296,2]
[420010392,1775610646837,-950.0,0.00015296,2]
[420010394,1775610646847,-950.0,0.00015296,2]
[420010396,1775610646857,-950.0,0.00015296,2]
[420010398,1775610646867,-950.0,0.00015296,2]
[420010400,1775610646877,-950.0,0.00015296,2]
[420010402,1775610646887,-676.0,0.00015296,2]
[420010404,1775610646897,-23357.19080226,0.00015297,2]
[420010406,1775610646907,-158.0,0.000153,2]
[420010408,1775610646918,-1800.0,0.000153,5]
[420010410,1775610646928,-476.09,0.00015301,2]
[420010412,1775610646939,-500.0,0.00015306,2]
[420010414,1775610646949,-8882.6885148,0.00015306,2]
[420010416,1775610646960,-151.0,0.00015306,2]
[420010418,1775610646969,-150.0,0.00015306,2]
[420010420,1775610646980,-150.0,0.00015306,2]
[420010423,1775610646992,-151.0,0.0001531,2]
[420010425,1775610647001,-151.0,0.0001531,2]
[420010427,1775610647011,-151.0,0.0001531,2]
[420010429,1775610647022,-151.0,0.0001531,2]
[420010431,1775610647032,-301.669465,0.0001531,2]
[420010433,1775610647043,-156.97,0.00015318,2]
[420010435,1775610647053,-150.0,0.00015329,2]
[420010437,1775610647063,-150.0,0.00015332,2]
[420010439,1775610647074,-350.0,0.00015348,2]
[420010441,1775610647084,-150.0,0.0001535,2]
[420010443,1775610647094,-151.0,0.00015356,2]
[420010445,1775610647104,-151.0,0.00015356,2]
[420010447,1775610647115,-500.0,0.00015361,2]
[420010449,1775610647125,-9211.34798985,0.00015361,2]
[420010452,1775610647135,-151.0,0.00015361,2]
[420010454,1775610647146,-1000.0,0.00015361,2]
[420010456,1775610647156,-1500.0,0.00015361,2]
[420010458,1775610647166,-150.0,0.00015362,2]
[420010460,1775610647176,-150.0,0.00015368,2]
[420010462,1775610647187,-20571.8416767,0.0001537,2]
[420010464,1775610647198,-150.0,0.00015375,2]
[420010466,1775610647208,-166.66,0.00015378,2]
[420010468,1775610647217,-150.0,0.00015385,2]
[420010470,1775610647228,-150.0,0.00015385,2]
[420010472,1775610647238,-150.0,0.00015385,2]
[420010474,1775610647248,-2700.0,0.000154,5]
[420010476,1775610647258,-512.72251566,0.000154,2]
[420010478,1775610647268,-1300.0,0.000154,5]
[420010480,1775610647278,-5888.0,0.00015401,2]
[420010482,1775610647289,-155.22435876,0.00015411,2]
[420010485,1775610647300,-150.0,0.00015413,2]
[420010487,1775610647311,-500.0,0.00015416,2]
[420010489,1775610647321,-9552.16786547,0.00015416,2]
[420010491,1775610647331,-151.0,0.00015416,2]
[420010493,1775610647342,-150.0,0.00015418,2]
[420010495,1775610647352,-150.0,0.00015422,2]
[420010497,1775610647363,-150.0,0.00015437,2]
[420010499,1775610647372,-150.0,0.00015437,2]
[420010501,1775610647383,-150.0,0.00015451,2]
[420010503,1775610647393,-150.0,0.00015463,2]
[420010505,1775610647403,-150.0,0.00015468,2]
[420010507,1775610647414,-500.0,0.00015471,2]
[420010509,1775610647425,-2400.21405685,0.00015471,2]